bitfinex/quotes_SOLUSD_20240821
["timestamp","ask_amount","ask_price","bid_price","bid_amount"]
[1724261784558,1.35141415,141.88,141.85,7.0496]
[1724261784861,1.35141415,141.88,141.84,7.0499]
[1724261785261,22.2614,141.89,141.84,7.0499]
[1724261786936,1.35141415,141.88,141.84,7.0499]
[1724261787469,22.2614,141.89,141.84,7.0499]
[1724261787965,7.0483,141.88,141.84,7.0499]
[1724261788349,8.40011415,141.87,141.83,7.0506]
[1724261788759,52.0493,141.86,141.82,24.6784]
[1724261789258,7.0493,141.86,141.82,24.6784]
[1724261790044,7.0485,141.88,141.82,17.6274]
[1724261790359,22.2614,141.89,141.84,17.6251]
[1724261791950,15.2136,141.89,141.85,7.0495]
[1724261792669,15.2136,141.89,141.86,7.0491]
[1724261794176,15.2136,141.89,141.85,7.0495]
[1724261794344,15.2136,141.89,141.84,24.6752]
[1724261795054,7.0485,141.88,141.84,24.6752]
[1724261795244,48.6236,141.89,141.81,36.103013]
[1724261795245,79.76141415,141.87,141.81,25.526513]
[1724261795448,7.0497,141.85,141.81,18.475013]
[1724261795655,8.40161415,141.84,141.81,18.475013]
[1724261796244,7.0508,141.83,141.81,0.846613]
[1724261796442,7.0511,141.82,141.81,0.846613]
[1724261796648,52.0511,141.82,141.81,0.846613]
[1724261799754,7.0511,141.82,141.81,0.846613]
[1724261799946,23.0176,141.83,141.81,0.846613]
[1724261801170,8.40251415,141.82,141.81,0.846613]
[1724261801343,52.0511,141.82,141.81,0.846613]
[1724261801741,7.0511,141.82,141.81,0.846613]
[1724261802571,15.9668,141.83,141.81,0.846613]
[1724261802793,23.0176,141.83,141.81,0.846613]
[1724261803195,7.0511,141.82,141.81,0.846613]
[1724261803666,53.40251415,141.82,141.81,0.846613]
[1724261804313,52.0511,141.82,141.81,0.846613]
[1724261805096,7.0527,141.79,141.74,24.6923]
[1724261805968,7.0527,141.79,141.75,7.0546]
[1724261807077,40.4622,141.8,141.76,7.0541]
[1724261807395,8.40411415,141.79,141.75,7.0546]
[1724261807601,33.41,141.8,141.76,7.054]
[1724261807897,7.0536,141.77,141.71,17.641]
[1724261808099,33.41,141.78,141.71,17.641]
[1724261808277,7.0532,141.78,141.71,17.641]
[1724261808480,7.0532,141.78,141.73,7.0556]
[1724261808993,7.0532,141.78,141.71,17.641]
[1724261809386,7.0536,141.77,141.71,17.641]
[1724261809584,7.0533,141.78,141.71,17.641]
[1724261809793,7.0533,141.78,141.69,35.2881]
[1724261810703,33.41,141.78,141.73,17.6386]
[1724261812009,7.0542,141.76,141.73,17.6386]
[1724261812179,7.0542,141.76,141.72,7.0557]
[1724261813184,7.0547,141.75,141.71,7.0564]
[1724261813781,7.0542,141.76,141.71,7.0564]
[1724261813983,23.0638,141.77,141.73,7.0556]
[1724261815492,23.0638,141.77,141.72,24.6959]
[1724261815719,23.0638,141.77,141.73,7.0555]
[1724261815886,16.0101,141.77,141.73,7.0555]
[1724261816209,23.0641,141.77,141.72,24.6959]
[1724261817432,23.0641,141.77,141.73,7.0556]
[1724261817801,16.0101,141.77,141.74,7.0551]
[1724261818115,7.0525,141.8,141.75,1.41083866]
[1724261818292,7.0525,141.8,141.75,8.46513866]
[1724261818492,15.8265,141.81,141.75,8.46513866]
[1724261818493,7.0527,141.79,141.75,8.46513866]
[1724261818710,7.0527,141.79,141.75,7.0543]
[1724261823305,40.4623,141.8,141.76,7.0541]
[1724261823509,7.0515,141.82,141.78,7.0531]
[1724261823834,7.0512,141.82,141.78,7.0531]
[1724261824125,1.35141415,141.81,141.76,17.635]
[1724261824432,7.053,141.79,141.74,7.055]
[1724261824600,7.053,141.79,141.73,17.6381]
[1724261824601,7.053,141.79,141.75,7.0546]
[1724261824804,8.40441415,141.79,141.75,7.0546]
[1724261825213,7.053,141.79,141.75,7.0546]
[1724261825410,33.41,141.76,141.67,22.509513]
[1724261825616,33.41,141.76,141.7,17.6423]
[1724261825617,1.35141415,141.75,141.7,17.6423]
[1724261825935,1.35141415,141.75,141.71,7.0566]
[1724261826524,33.41,141.76,141.7,24.6993]
[1724261827024,7.0547,141.75,141.7,24.6993]
[1724261827196,33.41,141.76,141.71,7.0565]
[1724261827397,40.4642,141.76,141.71,7.0565]
[1724261827604,7.0537,141.77,141.72,7.0559]
[1724261828442,7.0544,141.76,141.71,7.0565]
[1724261828637,40.4644,141.76,141.71,7.0565]
[1724261829325,34.76141415,141.76,141.7,24.6994]
[1724261829527,15.1423,141.78,141.7,24.6994]
[1724261829528,33.41,141.74,141.7,24.6994]
[1724261830945,40.4652,141.74,141.7,24.6994]
[1724261831130,1.35141415,141.73,141.67,24.819413]
[1724261831424,1.35141415,141.73,141.69,7.0574]
[1724261831425,7.0556,141.73,141.69,7.0574]
[1724261831729,8.40701415,141.73,141.69,7.0574]
[1724261832029,7.0561,141.72,141.68,7.058]
[1724261832612,8.40721415,141.73,141.68,7.058]
[1724261833612,7.0558,141.73,141.68,7.058]
[1724261834439,20.4658,141.73,141.69,7.0575]
[1724261834640,13.41,141.73,141.69,7.0575]
[1724261835213,20.4657,141.73,141.69,7.0575]
[1724261836027,13.41,141.73,141.69,7.0575]
[1724261836541,13.41,141.76,141.67,0.846613]
[1724261836844,22.1955,141.78,141.68,13.41]
[1724261837015,35.6055,141.78,141.69,45.0]
[1724261837413,35.6055,141.78,141.74,7.0547]
[1724261837414,15.1423,141.78,141.74,7.0547]
[1724261837714,22.1958,141.78,141.73,24.6942]
[1724261839141,7.0537,141.77,141.73,24.6942]
[1724261839640,22.1956,141.78,141.73,24.6942]
[1724261840949,15.1423,141.78,141.73,17.6387]
[1724261841241,7.0525,141.8,141.76,7.0541]
[1724261842931,22.1417,141.81,141.76,7.0541]
[1724261843245,7.0528,141.79,141.75,24.6907]
[1724261843621,7.0533,141.78,141.75,17.6362]
[1724261843946,7.0537,141.77,141.73,7.0555]
[1724261844742,33.5,141.79,141.72,24.6957]
[1724261844743,7.0541,141.76,141.72,24.6957]
[1724261845434,7.0541,141.76,141.72,17.6396]
[1724261845635,7.0552,141.74,141.7,7.0571]
[1724261845819,7.0557,141.73,141.69,24.7006]
[1724261846755,55.6166,141.75,141.69,17.6432]
[1724261847040,6.4494,141.77,141.71,17.6406]
[1724261847041,7.0542,141.76,141.71,17.6406]
[1724261847250,7.0542,141.76,141.72,7.0558]
[1724261848458,40.5537,141.77,141.73,7.0556]
[1724261848649,7.0543,141.76,141.72,7.056]
[1724261848845,7.0549,141.75,141.71,17.6406]
[1724261849432,7.0542,141.76,141.71,24.6969]
[1724261850154,7.0542,141.76,141.72,7.0561]
[1724261850352,7.0548,141.75,141.71,17.6406]
[1724261850561,7.0553,141.74,141.71,17.6406]
[1724261850731,15.7658,141.78,141.68,53.5]
[1724261850936,15.7658,141.78,141.73,17.6388]
[1724261851251,15.7658,141.78,141.75,7.0546]
[1724261851643,15.7658,141.78,141.74,1.41076189]
[1724261851644,15.7658,141.78,141.74,7.0549]
[1724261851842,15.7658,141.78,141.75,7.0545]
[1724261852154,7.0523,141.8,141.75,7.0545]
[1724261852459,7.0529,141.79,141.75,7.0545]
[1724261853260,7.0525,141.8,141.76,8.46474964]
[1724261853550,7.0518,141.81,141.77,7.0535]
[1724261853861,22.3664,141.82,141.78,7.0531]
[1724261854448,7.0502,141.84,141.8,7.0521]
[1724261855268,7.0502,141.84,141.79,24.6836]
[1724261855831,40.5498,141.85,141.8,7.0518]
[1724261856158,15.085,141.86,141.81,17.6288]
[1724261856159,22.1343,141.86,141.81,17.6288]
[1724261856876,7.0488,141.87,141.82,1.41000365]
[1724261857158,7.0482,141.88,141.83,7.0502]
[1724261857763,8.40011415,141.87,141.82,7.051]
[1724261858065,40.5497,141.85,141.81,24.68]
[1724261858255,40.5497,141.85,141.81,17.6288]
[1724261859940,7.051,141.83,141.78,17.6324]
[1724261860140,33.5,141.83,141.78,24.6854]
[1724261860358,40.5508,141.83,141.79,7.0524]
[1724261860539,40.5498,141.85,141.8,7.0518]
[1724261860742,7.0503,141.84,141.8,7.0518]
[1724261861257,7.0498,141.85,141.8,7.0518]
[1724261861447,33.5,141.87,141.8,17.63]
[1724261862850,7.0492,141.86,141.82,7.051]
[1724261863059,7.0489,141.87,141.83,7.0506]
[1724261863264,66.6075,141.89,141.8,23.7433]
[1724261863445,7.05,141.85,141.8,30.795]
[1724261863945,7.05,141.85,141.81,7.0516]
[1724261864967,7.0493,141.86,141.81,7.0516]
[1724261865150,33.5,141.87,141.82,7.0507]
[1724261865353,7.0495,141.86,141.82,7.0507]
[1724261865672,15.4879,141.89,141.83,1.40993974]
[1724261866142,22.536,141.89,141.84,7.0498]
[1724261866456,7.0482,141.88,141.84,7.0498]
[1724261867179,15.4879,141.89,141.85,8.45935391]
[1724261867180,22.5356,141.89,141.85,8.45935391]
[1724261867468,33.5,141.9,141.85,8.45935391]
[1724261867469,7.0472,141.9,141.85,7.0496]
[1724261868772,7.0472,141.9,141.86,7.0492]
[1724261871794,7.0477,141.89,141.85,7.0496]
[1724261872296,7.0473,141.9,141.86,1.4095992]
[1724261872461,49.8439,141.92,141.85,1.40953195]
[1724261872667,7.0467,141.91,141.84,17.625]
[1724261873071,7.0474,141.9,141.86,7.0491]
[1724261873282,7.0487,141.87,141.83,7.0502]
[1724261874190,7.0478,141.89,141.85,7.0496]
[1724261874894,49.8439,141.92,141.85,7.0496]
[1724261875385,7.0475,141.9,141.85,7.0496]
[1724261875582,7.0477,141.89,141.85,7.0496]
[1724261875983,7.0482,141.88,141.84,7.0501]
[1724261877092,7.0482,141.88,141.83,24.6769]
[1724261877306,7.0487,141.87,141.83,24.6769]
[1724261879384,7.0492,141.86,141.83,17.6264]
[1724261880180,7.0502,141.84,141.8,30.7946]
[1724261880382,7.0498,141.85,141.81,7.0516]
[1724261883215,7.0487,141.87,141.83,7.0505]
[1724261884113,33.5,141.9,141.84,7.0501]
[1724261884114,7.0484,141.88,141.84,7.0501]
[1724261884491,17.6175,141.91,141.85,7.0496]
[1724261884492,7.0478,141.89,141.85,7.0496]
[1724261884821,7.0482,141.88,141.84,24.6751]
[1724261887718,7.0478,141.89,141.85,7.0496]
[1724261887918,7.0478,141.89,141.85,8.45914915]
[1724261888294,7.0478,141.89,141.85,7.0496]
[1724261888717,7.0478,141.89,141.86,1.40954739]
[1724261889109,7.0473,141.9,141.87,1.40953062]
[1724261890008,24.149,141.94,141.9,7.047]
[1724261890009,7.0452,141.94,141.9,7.047]
[1724261890314,7.0452,141.94,141.91,1.40911836]
[1724261890898,17.6101,141.97,141.91,1.40911836]
[1724261890899,7.0448,141.95,141.91,8.45581836]
[1724261891116,7.0452,141.94,141.9,24.6648]
[1724261891290,33.5,141.96,141.87,6.6101]
[1724261892816,7.046,141.93,141.89,7.0475]
[1724261892996,7.0453,141.94,141.89,7.0475]
[1724261893595,7.0453,141.94,141.9,7.0471]
[1724261893811,7.0448,141.95,141.91,1.40910696]
[1724261894516,7.0448,141.95,141.9,7.0471]
[1724261894722,7.0453,141.94,141.9,7.0471]
[1724261895107,7.0468,141.91,141.87,7.0486]
[1724261895504,7.0477,141.89,141.85,7.0496]
[1724261895702,7.0483,141.88,141.84,7.0501]
[1724261896524,7.0478,141.89,141.84,7.0501]
[1724261897128,7.0482,141.88,141.84,7.0501]
[1724261898827,40.5493,141.86,141.81,7.0513]
[1724261899009,40.5493,141.86,141.82,7.0511]
[1724261899324,33.5,141.86,141.82,7.0511]
[1724261899706,40.5483,141.88,141.82,17.6273]
[1724261899908,7.0483,141.88,141.82,17.6273]
[1724261900624,7.0483,141.88,141.84,7.0501]
[1724261901006,7.0477,141.89,141.85,7.0496]
[1724261901432,7.0477,141.89,141.85,1.40977776]
[1724261902032,7.0477,141.89,141.84,24.6751]
[1724261902218,7.0477,141.89,141.85,7.0494]
[1724261902423,50.0682,141.92,141.86,7.0491]
[1724261902722,23.6147,141.92,141.87,7.0486]
[1724261902917,7.0458,141.93,141.88,17.6198]
[1724261903234,33.5,141.94,141.88,17.6198]
[1724261903548,7.0473,141.9,141.86,7.0488]
[1724261903707,7.0468,141.91,141.87,7.0485]
[1724261904712,7.0468,141.91,141.86,7.049]
[1724261905028,7.0472,141.9,141.86,7.049]
[1724261905337,7.0467,141.91,141.87,7.0485]
[1724261910348,7.0467,141.91,141.85,17.6236]
[1724261910349,7.0455,141.94,141.9,7.0468]
[1724261911221,7.0455,141.94,141.89,17.6188]
[1724261911222,7.0455,141.94,141.89,24.6663]
[1724261913138,7.0455,141.94,141.89,17.6188]
[1724261913340,23.6834,141.95,141.89,17.6188]
[1724261913719,23.6834,141.95,141.9,7.047]
[1724261914245,7.0452,141.94,141.9,7.047]
[1724261914848,7.0452,141.94,141.89,24.6663]
[1724261915044,34.85141415,141.93,141.89,17.6188]
[1724261915340,34.85141415,141.93,141.86,17.6222]
[1724261915551,7.0463,141.92,141.87,7.0482]
[1724261916352,7.0463,141.92,141.88,7.048]
[1724261917954,40.5458,141.93,141.88,7.048]
[1724261918155,40.5458,141.93,141.89,7.0476]
[1724261918357,7.0452,141.94,141.9,7.0472]
[1724261918922,7.0452,141.94,141.89,7.0476]
[1724261919145,7.0458,141.93,141.89,7.0476]
[1724261919747,7.0464,141.92,141.88,24.6683]
[1724261920620,7.0458,141.93,141.88,24.6683]
[1724261922441,7.0463,141.92,141.88,24.6683]
[1724261922828,8.39771415,141.92,141.88,24.6683]
[1724261923031,1.35141415,141.92,141.85,17.6233]
[1724261923254,33.5,141.91,141.85,17.6233]
[1724261923549,8.39861415,141.9,141.86,7.0488]
[1724261923753,8.39861415,141.9,141.85,17.6233]
[1724261923754,33.5,141.91,141.85,17.6233]
[1724261923920,34.85141415,141.89,141.85,17.6233]
[1724261924124,33.5,141.89,141.85,17.6233]
[1724261924634,40.5478,141.89,141.85,17.6233]
[1724261925154,7.0478,141.89,141.85,17.6233]
[1724261926549,7.0478,141.89,141.85,24.6728]
[1724261927630,52.76354492,141.95,141.82,56.5849]
[1724261927631,19.26354492,141.95,141.87,17.6211]
[1724261927831,16.6386,141.95,141.87,17.6211]
[1724261928151,7.0462,141.92,141.87,24.6693]
[1724261928333,7.0467,141.91,141.87,17.6211]
[1724261928537,51.1133,141.94,141.87,17.6211]
[1724261928744,7.0468,141.91,141.87,24.6697]
[1724261932356,40.5464,141.92,141.87,24.6697]
[1724261932759,7.0467,141.91,141.87,24.6697]
[1724261934038,40.5462,141.92,141.88,7.0481]
[1724261934256,7.0462,141.92,141.88,7.0481]
[1724261934467,7.0458,141.93,141.89,7.0476]
[1724261935344,33.5,141.91,141.84,17.6246]
[1724261935740,40.548,141.89,141.84,17.6246]
[1724261935958,40.548,141.89,141.85,7.0495]
[1724261937045,33.5,141.89,141.84,17.6246]
[1724261937267,33.5,141.96,141.84,17.6246]
[1724261937268,33.5,141.87,141.84,17.6246]
[1724261937567,40.5487,141.87,141.84,17.6246]
[1724261939439,33.5,141.85,141.81,24.6797]
[1724261941103,40.5497,141.85,141.81,24.6797]
[1724261943657,7.0483,141.88,141.78,10.79204035]
[1724261943843,7.0483,141.88,141.83,17.6261]
[1724261944051,7.0483,141.88,141.84,7.0499]
[1724261946673,7.0487,141.87,141.83,24.6766]
[1724261947051,33.5,141.87,141.8,17.6298]
[1724261947250,1.35141415,141.86,141.8,17.6298]
[1724261947577,40.5498,141.85,141.81,7.0516]
[1724261947757,7.0502,141.84,141.8,24.6817]
[1724261948353,33.5,141.85,141.8,17.6298]
[1724261948569,7.0516,141.82,141.77,17.6335]
[1724261948785,1.35141415,141.84,141.77,17.6335]
[1724261948786,40.5517,141.81,141.77,17.6335]
[1724261949077,7.0522,141.8,141.75,7.0545]
[1724261949259,40.5517,141.81,141.76,7.054]
[1724261950275,40.5517,141.81,141.77,7.0536]
[1724261950276,7.0517,141.81,141.77,7.0536]
[1724261950452,33.5,141.83,141.74,6.3203]
[1724261950654,16.2345,141.84,141.76,35.2706]
[1724261950856,16.2345,141.84,141.8,7.052]
[1724261951049,23.2847,141.84,141.79,24.6836]
[1724261951257,7.0507,141.83,141.79,17.631]
[1724261952678,40.5507,141.83,141.79,17.631]
[1724261952867,16.2345,141.84,141.76,17.6347]
[1724261952868,33.5,141.81,141.76,17.6347]
[1724261953069,40.5517,141.81,141.76,24.6884]
[1724261953371,7.0524,141.8,141.76,17.6347]
[1724261953572,33.5,141.81,141.76,17.6347]
[1724261953573,8.40411415,141.79,141.76,17.6347]
[1724261953765,7.0527,141.79,141.76,17.6347]
[1724261954288,7.0527,141.79,141.75,7.0546]
[1724261955156,33.5,141.81,141.75,7.0546]
[1724261956992,7.0527,141.79,141.75,7.0546]
[1724261958467,7.0522,141.8,141.76,7.054]
[1724261958669,7.0513,141.82,141.78,7.0531]
[1724261959267,16.2345,141.84,141.79,17.6309]
[1724261959490,33.5,141.87,141.79,17.6309]
[1724261959705,7.05,141.85,141.81,7.0516]
[1724261959883,7.05,141.85,141.8,7.052]
[1724261960092,40.5511,141.83,141.79,17.6309]
[1724261960396,40.5511,141.83,141.79,24.6835]
[1724261961963,7.0513,141.82,141.78,7.053]
[1724261963759,40.5507,141.83,141.79,7.0526]
[1724261963965,7.0503,141.84,141.8,7.052]
[1724261966099,40.5498,141.85,141.81,7.0516]
[1724261966861,40.5498,141.85,141.8,24.6822]
[1724261967070,7.0503,141.84,141.8,24.6822]
[1724261969101,7.0507,141.83,141.8,17.6302]
[1724261971818,7.0502,141.84,141.8,24.6822]
[1724261975205,40.5508,141.83,141.8,17.6302]
[1724261979086,7.0512,141.82,141.78,7.0528]
[1724261979390,40.5517,141.81,141.77,24.6871]
[1724261980515,20.5517,141.81,141.77,24.6871]
[1724261981881,27.6037,141.81,141.77,24.6871]
[1724261986524,20.442,141.81,141.77,24.6871]
[1724261989819,13.39,141.83,141.77,17.6336]
[1724261990117,20.4409,141.83,141.79,7.0526]
[1724261990317,7.0507,141.83,141.79,17.6313]
[1724261990503,7.0507,141.83,141.79,24.6838]
[1724261991025,20.4407,141.83,141.79,24.6838]
[1724261991187,13.39,141.81,141.79,17.6313]
[1724261991392,20.4417,141.81,141.77,7.0535]
[1724261993394,7.0523,141.8,141.76,24.6888]
[1724261993613,13.39,141.79,141.76,24.6888]
[1724261997598,13.39,141.79,141.75,7.0545]
[1724261997599,21.79441415,141.79,141.75,7.0545]
[1724261999932,7.0531,141.78,141.75,7.0545]
[1724262000106,8.40451415,141.78,141.75,7.0545]
[1724262000926,13.39,141.77,141.74,7.0549]
[1724262002110,13.39,141.77,141.73,17.6381]
[1724262002111,14.74141415,141.77,141.72,7.0557]
[1724262002439,13.39,141.75,141.71,7.0565]
[1724262004441,7.0542,141.76,141.72,7.0559]
[1724262006532,20.4437,141.77,141.72,7.0559]
[1724262006738,23.2335,141.78,141.72,17.6397]
[1724262007739,16.1803,141.78,141.75,7.0546]
[1724262007939,13.39,141.8,141.74,17.6374]
[1724262008120,20.4425,141.8,141.76,7.0541]
[1724262009437,32.6743,141.82,141.76,7.0541]
[1724262009438,15.0456,141.82,141.76,17.6351]
[1724262010851,22.0969,141.82,141.78,7.053]
[1724262011851,22.0969,141.82,141.79,7.0525]
[1724262011852,15.0456,141.82,141.79,7.0525]
[1724262012149,15.0456,141.82,141.78,24.6855]
[1724262013954,7.0508,141.83,141.79,7.0523]
[1724262015835,13.39,141.84,141.8,7.0517]
[1724262016265,20.4405,141.84,141.79,7.0525]
[1724262016475,7.0507,141.83,141.78,24.6856]
[1724262017268,7.0498,141.85,141.81,7.0516]
[1724262017560,36.6218,141.86,141.81,7.0516]
[1724262018427,36.6218,141.86,141.82,7.0511]
[1724262020851,22.3774,141.9,141.82,17.6272]
[1724262021174,13.39,141.88,141.82,17.6272]
[1724262021454,13.39,141.88,141.84,7.0497]
[1724262021756,13.39,141.88,141.85,7.0496]
[1724262022262,36.6376,141.9,141.84,17.625]
[1724262022553,20.4372,141.9,141.86,7.0491]
[1724262022762,13.39,141.9,141.87,7.0486]
[1724262022967,22.7947,141.93,141.88,7.0478]
[1724262023145,20.4362,141.92,141.88,7.0478]
[1724262024077,13.39,141.9,141.86,24.6713]
[1724262024250,15.7487,141.93,141.83,24.2353]
[1724262024251,13.39,141.88,141.83,24.2353]
[1724262024634,13.39,141.88,141.84,7.0498]
[1724262025268,13.39,141.88,141.85,7.0495]
[1724262025853,20.4382,141.88,141.83,24.6761]
[1724262026033,13.39,141.86,141.83,17.6259]
[1724262026364,13.39,141.86,141.83,24.6764]
[1724262027030,20.4392,141.86,141.83,17.6259]
[1724262027654,13.39,141.86,141.83,17.6259]
[1724262028254,20.4382,141.88,141.83,17.6259]
[1724262028659,20.4382,141.88,141.83,24.6764]
[1724262029166,20.4382,141.88,141.84,7.05]
[1724262038876,7.0492,141.86,141.83,17.6259]
[1724262039100,20.4392,141.86,141.83,17.6259]
[1724262040069,7.0498,141.85,141.81,7.0516]
[1724262040485,13.39,141.86,141.82,7.0511]
[1724262040486,20.4393,141.86,141.82,7.0511]
[1724262040688,13.39,141.88,141.82,17.6275]
[1724262040988,13.39,141.88,141.8,6.4301]
[1724262041238,20.4385,141.88,141.84,24.6752]
[1724262041402,7.0487,141.87,141.84,17.6252]
[1724262041575,20.4382,141.88,141.84,24.6753]
[1724262043417,20.4382,141.88,141.8,19.8201]
[1724262043418,13.39,141.88,141.82,7.0511]
[1724262043620,20.4402,141.84,141.8,13.482]
[1724262043916,20.4402,141.84,141.8,7.0519]
[1724262044286,20.4415,141.82,141.78,24.6851]
[1724262046293,7.0508,141.83,141.79,7.0526]
[1724262046786,13.39,141.84,141.79,7.0526]
[1724262046787,20.4403,141.84,141.79,7.0526]
[1724262047284,20.4403,141.84,141.78,17.6321]
[1724262047285,20.4403,141.84,141.8,7.0521]
[1724262047487,7.0497,141.85,141.8,17.6299]
[1724262048792,7.0497,141.85,141.81,7.0514]
[1724262049191,20.4392,141.86,141.81,7.0514]
[1724262049914,20.4404,141.84,141.8,24.6819]
[1724262053823,13.39,141.84,141.8,24.6819]
[1724262056830,254.2,141.92,141.87,7.0482]
[1724262057030,7.0463,141.92,141.87,7.0482]
[1724262057812,7.0463,141.92,141.88,7.048]
[1724262061222,7.0468,141.91,141.87,7.0485]
[1724262061810,7.0463,141.92,141.87,7.0485]
[1724262062316,35.9005,141.93,141.88,7.0481]
[1724262062806,7.0463,141.92,141.88,7.0481]
[1724262068015,15.4647,141.93,141.89,7.0476]
[1724262068016,22.5105,141.93,141.89,7.0476]
[1724262070025,22.5105,141.93,141.89,8.45696449]
[1724262070724,7.0458,141.93,141.89,8.45696449]
[1724262071503,7.0458,141.93,141.89,7.0476]
[1724262073114,20.4353,141.94,141.9,7.0471]
[1724262074031,15.3632,141.96,141.9,17.6175]
[1724262074337,15.3632,141.96,141.91,1.4092917]
[1724262074503,22.4077,141.96,141.92,7.0459]
[1724262074898,20.4347,141.95,141.91,7.0465]
[1724262075619,20.4347,141.95,141.9,24.6646]
[1724262075620,20.4349,141.95,141.9,24.6646]
[1724262076030,13.39,141.95,141.91,7.0467]
[1724262076251,15.3632,141.96,141.91,8.45588465]
[1724262076524,28.7532,141.96,141.92,7.0462]
[1724262076726,17.6071,141.99,141.92,7.0462]
[1724262076944,13.39,141.97,141.94,7.0451]
[1724262077231,13.39,141.97,141.92,17.6152]
[1724262077627,20.434,141.97,141.93,7.0456]
[1724262078124,20.434,141.97,141.92,24.6612]
[1724262078631,20.434,141.97,141.93,7.0456]
[1724262078817,20.434,141.97,141.93,8.4545375]
[1724262079127,13.39,141.97,141.93,8.4544375]
[1724262082037,20.4337,141.97,141.93,8.4544375]
[1724262082339,20.4337,141.97,141.93,7.0455]
[1724262083104,13.39,141.99,141.94,17.6127]
[1724262083522,29.1182,142.0,141.95,1.40888783]
[1724262084244,36.1607,142.0,141.96,7.0441]
[1724262084541,22.7707,142.0,141.96,7.0441]
[1724262084719,22.7707,142.0,141.97,7.0437]
[1724262084720,15.7282,142.0,141.97,7.0437]
[1724262085948,20.4319,142.01,141.97,7.0437]
[1724262086109,13.39,142.03,141.98,17.6076]
[1724262086706,15.8519,142.04,141.98,17.6076]
[1724262086933,29.2419,142.04,141.98,17.6076]
[1724262087735,36.2823,142.04,141.99,7.0426]
[1724262088821,7.0408,142.03,141.98,24.6507]
[1724262089617,7.0408,142.03,141.99,8.45090557]
[1724262091167,29.2419,142.04,141.96,6.3887]
[1724262091168,14.74141415,142.02,141.96,6.3887]
[1724262091325,7.0417,142.01,141.94,17.6119]
[1724262091829,20.4313,142.02,141.97,7.0436]
[1724262092344,13.39,142.0,141.96,24.6537]
[1724262094131,20.4313,142.02,141.96,17.6097]
[1724262094636,20.4313,142.02,141.97,7.0436]
[1724262094832,7.0417,142.01,141.97,7.0436]
[1724262095238,20.4313,142.02,141.98,7.0432]
[1724262096467,20.4313,142.02,141.96,17.6097]
[1724262096468,7.0418,142.01,141.97,7.0436]
[1724262097641,20.4312,142.02,141.97,7.0436]
[1724262097849,20.4312,142.02,141.98,7.0431]
[1724262099958,7.0407,142.03,141.99,8.4508968]
[1724262100170,29.2419,142.04,141.99,7.0425]
[1724262101757,29.2419,142.04,141.98,24.6508]
[1724262102073,29.2419,142.04,141.98,17.6077]
[1724262102074,7.0418,142.01,141.98,17.6077]
[1724262102270,7.0418,142.01,141.97,7.0436]
[1724262108979,20.4315,142.02,141.98,7.0431]
[1724262109580,7.0417,142.01,141.97,24.6526]
[1724262110269,7.0417,142.01,141.97,17.609]
[1724262112112,7.0428,141.99,141.95,7.0445]
[1724262112408,20.4336,141.98,141.94,17.6121]
[1724262113824,20.4336,141.98,141.94,24.6572]
[1724262117930,13.39,141.98,141.92,7.046]
[1724262118425,7.0443,141.96,141.92,7.046]
[1724262118584,13.39,141.98,141.9,7.047]
[1724262118585,20.4356,141.94,141.9,7.047]